bitfinex-derivatives/quotes_ETHF0:USTF0_20260131
["timestamp","ask_amount","ask_price","bid_price","bid_amount"]
[1769885226612,3.72943661,2361.3,2356.6,2.29751671]
[1769885226816,3.72943661,2358.1,2354.5,2.68583849]
[1769885227313,3.87124788,2357.2,2354.5,2.68583849]
[1769885227515,3.382,2358.7,2356.0,2.68583849]
[1769885227910,19.72313762,2356.4,2354.5,0.00339991]
[1769885228109,19.71973771,2355.9,2352.4,2.68583849]
[1769885228310,3.383,2356.3,2352.4,2.68583849]
[1769885228515,19.71973771,2355.3,2352.4,2.68583849]
[1769885228711,0.21268,2354.3,2348.5,3.20393484]
[1769885229015,27.076,2354.2,2350.9,2.68583849]
[1769885229222,3.5967,2354.1,2350.9,0.00387453]
[1769885229420,3.87124788,2354.1,2350.9,2.68971302]
[1769885229609,0.00525419,2354.2,2352.6,2.68583849]
[1769885229815,3.87124788,2355.8,2352.7,3.29970327]
[1769885230014,3.87124788,2357.2,2354.5,3.08688327]
[1769885230216,3.87124788,2358.0,2354.5,3.08688327]
[1769885230512,3.386,2359.3,2356.6,3.08688327]
[1769885230820,3.87124788,2359.2,2356.6,0.0032087]
[1769885231022,3.87124788,2359.1,2356.6,0.0032087]
[1769885231221,3.87124788,2360.7,2358.2,2.68583849]
[1769885232017,3.87124788,2360.5,2358.2,2.68583849]
[1769885232217,3.87527409,2360.5,2358.3,2.68583849]
[1769885232513,3.387,2361.1,2358.0,3.12988012]
[1769885232718,3.87124788,2359.8,2356.5,2.68583849]
[1769885232914,3.87124788,2359.6,2357.3,2.68583849]
[1769885233116,3.87124788,2359.6,2355.8,3.34242012]
[1769885233316,3.87124788,2359.2,2357.1,2.68583849]
[1769885233520,3.87124788,2359.0,2357.1,0.00393854]
[1769885233824,3.87124788,2357.4,2355.5,2.68583849]
[1769885234014,3.87124788,2357.4,2355.2,2.68583849]
[1769885234215,3.387,2357.7,2356.0,2.68583849]
[1769885234414,3.87124788,2361.0,2356.9,2.68583849]
[1769885234617,3.87124788,2360.9,2357.7,2.68583849]
[1769885234813,3.87124788,2360.5,2357.7,0.00380201]
[1769885235018,3.87124788,2359.3,2355.1,2.80967845]
[1769885235220,3.388,2359.2,2357.1,2.68583849]
[1769885235519,3.87124788,2360.4,2357.9,2.68583849]
[1769885235713,3.87124788,2361.2,2357.9,2.7776765]
[1769885235911,3.87124788,2360.6,2357.9,2.78178114]
[1769885236317,3.87124788,2359.6,2357.9,0.00410464]
[1769885236521,3.87124788,2359.6,2355.9,2.71270188]
[1769885236522,3.87124788,2357.9,2354.6,5.49037838]
[1769885236918,3.87124788,2357.5,2354.6,5.49037838]
[1769885237319,3.87124788,2358.7,2355.7,2.7776765]
[1769885237515,3.389,2360.5,2357.2,2.84080995]
[1769885237715,3.87124788,2360.4,2357.1,2.84080995]
[1769885237920,3.87124788,2360.3,2357.1,2.84080995]
[1769885238114,3.87124788,2359.5,2356.3,2.84080995]
[1769885238622,0.21174,2364.8,2359.7,2.84080995]
[1769885238823,3.87124788,2367.7,2362.4,2.84080995]
[1769885239026,3.87124788,2367.0,2362.7,2.84080995]
[1769885239319,3.87124788,2366.6,2362.8,2.84080995]
[1769885239520,3.87124788,2366.2,2362.8,2.84080995]
[1769885239720,3.87568156,2366.2,2362.8,2.84463165]
[1769885239917,3.87124788,2365.6,2362.8,0.0038217]
[1769885240115,3.87124788,2364.7,2362.8,0.0038217]
[1769885240320,3.87124788,2365.6,2362.8,2.65054024]
[1769885240522,3.87568156,2366.2,2362.8,2.65054024]
[1769885240729,3.87124788,2365.8,2362.8,2.65054024]
[1769885240930,3.87124788,2365.6,2362.8,0.0038217]
[1769885241131,3.87124788,2365.3,2362.8,0.0038217]
[1769885241521,3.87124788,2363.9,2360.3,4.96738511]
[1769885241825,3.87124788,2363.8,2360.4,2.25468323]
[1769885242029,19.71973771,2363.5,2360.4,2.25468323]
[1769885242326,23.59098559,2363.2,2360.4,2.25468323]
[1769885242526,3.87124788,2362.4,2359.5,2.25468323]
[1769885242826,3.87124788,2362.3,2360.3,0.00299625]
[1769885243321,0.00352789,2363.2,2360.3,0.00299625]
[1769885243322,3.87124788,2363.1,2360.3,0.00299625]
[1769885243527,3.87124788,2365.8,2361.2,2.19424324]
[1769885243729,3.87124788,2365.8,2361.7,2.19424324]
[1769885243931,3.87124788,2365.4,2361.6,2.71270188]
[1769885244127,3.87124788,2364.7,2360.9,2.19424324]
[1769885244524,3.87124788,2363.5,2360.4,2.71270188]
[1769885244725,3.87124788,2363.4,2360.3,0.00299625]
[1769885245027,23.80284559,2363.4,2360.3,0.00299625]
[1769885245331,3.87124788,2361.6,2360.3,0.00299625]
[1769885245629,3.87124788,2360.3,2356.9,0.21244]
[1769885245828,3.87124788,2360.3,2356.8,2.71270188]
[1769885246126,3.87124788,2360.3,2356.9,0.21244]
[1769885246327,3.87124788,2361.4,2358.1,2.16568074]
[1769885246530,3.387,2361.5,2357.3,0.21241]
[1769885246531,3.387,2361.5,2359.0,5.91451013]
[1769885246832,3.387,2363.0,2359.8,2.16568074]
[1769885247033,3.387,2364.2,2361.1,2.16568074]
[1769885247227,3.387,2364.2,2360.1,2.16568074]
[1769885247228,3.87124788,2363.7,2360.1,2.16568074]
[1769885247427,3.87124788,2363.5,2359.7,2.71270188]
[1769885247723,3.87124788,2363.4,2359.8,2.26543124]
[1769885247925,3.87124788,2364.2,2361.0,2.26543124]
[1769885248228,3.87124788,2366.7,2362.8,2.26543124]
[1769885248432,3.87124788,2366.7,2363.0,2.26543124]
[1769885248635,3.387,2366.8,2362.9,0.2119]
[1769885248636,3.87124788,2366.6,2363.2,2.26543124]
[1769885248932,3.87124788,2365.6,2363.2,0.00483284]
[1769885249129,3.87124788,2364.5,2361.0,2.71270188]
[1769885249328,3.87124788,2362.8,2359.8,2.92488188]
[1769885249625,4.08317788,2362.6,2359.0,3.74448256]
[1769885249831,3.87124788,2362.2,2359.0,3.74448256]
[1769885250022,3.87124788,2362.0,2359.0,3.74448256]
[1769885250227,3.87124788,2361.3,2359.0,3.7476633]
[1769885250729,0.00506208,2362.0,2355.4,2.71270188]
[1769885250730,3.87124788,2359.0,2355.4,2.71270188]
[1769885250926,3.87124788,2358.8,2355.4,2.71270188]
[1769885251131,3.87124788,2358.8,2355.5,2.07937036]
[1769885251331,3.87124788,2361.3,2357.9,2.07937036]
[1769885251530,3.87124788,2363.0,2358.6,2.11606397]
[1769885251724,3.87124788,2362.7,2358.6,2.1201404]
[1769885251930,3.87124788,2362.1,2358.6,2.1201404]
[1769885252232,3.87124788,2362.1,2358.6,0.00407643]
[1769885252533,3.87124788,2361.6,2358.8,0.21227]
[1769885252926,23.59098559,2361.1,2358.6,0.00407643]
[1769885253124,3.87124788,2361.0,2358.6,0.00407643]
[1769885253834,3.87124788,2363.8,2360.2,2.38577045]
[1769885254030,3.87124788,2364.6,2361.2,2.38577045]
[1769885254629,3.87124788,2364.7,2361.8,2.38577045]
[1769885254838,3.87674201,2364.6,2361.2,2.60156746]
[1769885255032,0.00549413,2364.6,2361.4,2.38577045]
[1769885255230,0.00549413,2364.6,2362.0,2.71270188]
[1769885255439,0.00549413,2364.6,2362.2,0.21196]
[1769885255728,3.87124788,2367.1,2363.6,2.43336729]
[1769885255930,3.87124788,2367.1,2364.1,2.64515729]
[1769885256132,3.87124788,2368.7,2364.8,0.21173]
[1769885256337,3.87124788,2367.9,2364.8,2.43336729]
[1769885256536,23.59098559,2367.8,2364.8,2.43745888]
[1769885256839,3.87124788,2367.8,2364.8,2.64918888]
[1769885257135,3.92035545,2366.8,2364.8,0.00409159]
[1769885257433,3.92035545,2366.1,2364.8,0.00409159]
[1769885257632,3.92363739,2366.1,2364.8,0.00409159]
[1769885257828,19.71973771,2365.6,2364.8,0.00409159]
[1769885258131,3.92363739,2366.1,2362.2,2.92466188]
[1769885258334,3.92035545,2364.9,2361.1,2.71270188]
[1769885258541,3.92035545,2364.2,2361.7,0.21201]
[1769885258731,3.92035545,2364.2,2361.1,2.71270188]
[1769885259033,3.92035545,2366.2,2362.5,0.21194]
[1769885259336,3.92035545,2365.4,2362.5,0.00385614]
[1769885259536,3.92035545,2364.4,2362.5,0.00385614]
[1769885259728,0.00312725,2364.4,2362.5,0.00385614]
[1769885259926,3.92035545,2366.8,2364.1,2.43951888]
[1769885260131,3.92035545,2366.8,2364.3,0.21177]
[1769885260432,3.92035545,2367.9,2365.3,2.65119888]
[1769885260630,3.92035545,2368.8,2365.6,0.21166]
[1769885260826,19.71973771,2368.4,2365.6,2.43951888]
[1769885261026,3.92035545,2368.3,2365.6,2.44407447]
[1769885261332,3.92035545,2368.3,2363.3,0.21187]
[1769885261333,3.92035545,2365.7,2363.0,0.821186]
[1769885261633,3.92035545,2365.5,2363.0,0.821186]
[1769885262134,23.64009316,2364.8,2363.0,0.821186]
[1769885262334,3.92035545,2364.7,2363.0,0.821186]
[1769885262637,3.92035545,2364.6,2363.0,0.82419399]
[1769885262930,0.21158,2366.5,2363.3,0.21186]
[1769885263132,0.2115,2367.5,2363.3,2.82166501]
[1769885263328,0.21136,2369.1,2364.6,0.21175]
[1769885263528,0.21135,2369.1,2364.6,0.21175]
[1769885263730,3.383,2369.6,2364.7,2.57797332]
[1769885263931,0.21144,2368.1,2364.7,2.58145833]
[1769885264136,0.21146,2367.9,2364.7,2.58145833]
[1769885264334,0.21653605,2367.9,2364.7,0.00348501]
[1769885264528,0.21155,2367.0,2364.7,0.00348501]
[1769885264840,19.71973771,2366.2,2363.4,0.21186]
[1769885265033,23.685,2368.1,2363.9,0.21181]
[1769885265034,3.92035545,2366.7,2363.9,0.21181]
[1769885265436,3.92035545,2366.7,2363.0,3.40264433]
[1769885265437,3.92035545,2367.7,2365.4,0.21168]
[1769885265635,3.92035545,2369.9,2366.9,0.21155]
[1769885265833,3.92035545,2369.6,2366.9,0.00327547]
[1769885266034,19.71973771,2369.0,2366.9,0.00327547]
[1769885266338,3.92035545,2367.0,2364.6,2.71270188]
[1769885266535,3.99155168,2366.2,2362.2,0.21197]
[1769885266741,3.99155168,2365.4,2362.0,0.21198]
[1769885266942,0.21168,2365.5,2361.2,0.21206]
[1769885266943,3.99155168,2365.1,2362.1,0.21197]
[1769885267241,3.99155168,2364.2,2362.1,0.21197]
[1769885267438,3.99155168,2364.0,2363.0,0.00537639]
[1769885267633,3.99155168,2363.1,2360.2,874.21214]
[1769885268344,7.37355168,2363.9,2360.5,2.71019087]
[1769885268636,0.0052283,2363.9,2361.5,2.92222087]
[1769885268841,0.0052283,2363.9,2361.7,2.71019087]
[1769885269142,0.0052283,2363.9,2361.8,0.212]
[1769885269338,0.0052283,2363.9,2360.9,2.71019087]
[1769885269543,0.0052283,2363.9,2361.1,2.9554211]
[1769885269738,0.0052283,2363.9,2361.6,0.21202]
[1769885269939,0.0052283,2363.9,2361.7,0.21201]
[1769885270138,0.0052283,2363.9,2361.1,2.9554211]
[1769885270338,0.0052283,2363.9,2361.7,0.21201]
[1769885270536,0.0052283,2363.9,2361.1,2.9554211]
[1769885271042,0.0052283,2363.9,2361.7,2.7433611]
[1769885271242,3.99155168,2365.0,2362.1,2.9553311]
[1769885271643,3.99155168,2364.8,2362.1,0.21197]
[1769885271839,3.382,2365.5,2360.5,7.27314224]
[1769885271840,3.99155168,2363.9,2361.2,0.21206]
[1769885272041,3.99155168,2363.9,2360.7,0.2121]
[1769885272241,3.99155168,2363.5,2360.7,0.2121]
[1769885272637,3.99155168,2362.7,2360.5,0.00514224]
[1769885273344,3.99155168,2361.2,2360.2,874.0]
[1769885273540,3.99155168,2361.2,2360.2,873.0505902]
[1769885273737,0.21198,2362.1,2360.2,873.0505902]
[1769885273738,19.71973771,2360.4,2360.2,873.0505902]
[1769885273939,3.99155168,2362.2,2360.2,873.0505902]
[1769885274246,3.99155168,2362.7,2360.2,873.05570049]
[1769885274451,3.99155168,2361.8,2360.2,873.05570049]
[1769885274638,3.99155168,2361.2,2360.2,795.4521001]
[1769885274943,0.21201,2361.7,2360.3,84.0]
[1769885275341,0.21182,2363.9,2361.9,4.12270181]
[1769885275543,0.21182,2363.9,2362.0,3.384]
[1769885275743,0.09038923,2364.0,2361.1,3.384]
[1769885275944,0.30220923,2363.9,2361.2,83.9955579]
[1769885276242,0.09038923,2363.8,2361.1,3.384]
[1769885276446,0.21194,2362.5,2361.1,0.00297304]
[1769885276746,0.212,2361.9,2360.2,283.68777596]
[1769885276946,0.212,2361.9,2360.3,83.9955579]
[1769885277347,0.21192,2362.8,2360.4,3.384]
[1769885277644,0.21193,2362.7,2360.5,4.10403236]
[1769885277845,0.21186,2363.5,2361.1,4.10403236]
[1769885278147,0.0789268,2365.2,2361.8,4.10403236]
[1769885278351,0.0789268,2364.7,2361.9,7.48803236]
[1769885278544,0.21182,2363.9,2362.0,4.10403236]
[1769885278739,0.00320668,2363.9,2362.1,4.10403236]
[1769885278945,0.21172,2365.0,2362.9,4.10403236]
[1769885279344,0.21172,2365.0,2363.0,83.9955579]
[1769885279540,0.21175,2364.7,2363.1,3.385]
[1769885279748,0.21165,2365.9,2363.2,4.10403236]
[1769885279949,0.00417382,2365.9,2363.3,4.10403236]
[1769885280146,0.00417382,2365.9,2363.8,4.10403236]
[1769885280340,0.11193901,2365.8,2363.2,88.09959026]
[1769885280546,0.21162,2366.1,2363.3,4.10403236]
[1769885280851,0.11193901,2368.2,2364.5,4.10403236]
[1769885281051,0.11193901,2368.2,2362.7,0.21192]
[1769885281052,0.21162,2366.1,2363.5,4.10403236]
[1769885281248,0.11193901,2366.9,2363.7,4.10403236]
[1769885281449,0.00457717,2366.9,2363.7,4.10892016]
[1769885281749,0.21613717,2366.9,2364.5,4.10403236]
[1769885281948,0.00457717,2366.9,2364.6,7.48803236]
[1769885282148,0.21135,2369.2,2365.8,4.10403236]
[1769885282353,0.21139,2368.7,2366.6,4.10403236]
[1769885282652,0.2113,2369.7,2366.7,4.10403236]
[1769885282844,0.21125,2370.3,2366.9,4.10403236]
[1769885283040,0.21127,2370.0,2367.1,4.10403236]
[1769885283248,0.21127,2370.0,2367.6,4.10403236]
[1769885283444,0.31629302,2369.5,2366.9,0.00331046]
[1769885283651,0.21155,2366.9,2364.7,3.384]
[1769885283851,0.31298256,2366.7,2364.7,1.99450341]
[1769885284056,3.383,2368.0,2362.8,4.12270149]
[1769885284057,0.21168,2365.5,2362.8,4.12270149]
[1769885284246,0.21158,2366.5,2362.9,86.9476979]
[1769885284443,0.21158,2366.5,2362.7,1.09849999]
[1769885284444,0.21174,2364.8,2362.7,83.1389979]
[1769885284649,0.21181,2364.0,2362.7,83.14340469]
[1769885284849,0.00304034,2364.8,2362.8,4.12270149]
[1769885285145,0.21159,2366.4,2364.3,4.12270149]
[1769885285349,0.21156,2366.8,2364.4,3.383]
[1769885285655,0.21148,2367.7,2362.8,83.1389979]
[1769885285656,0.21162,2366.1,2362.9,4.12270146]
[1769885285961,0.21161,2366.2,2363.6,4.12270146]
[1769885286275,0.21165,2365.8,2363.6,1.99e-06]
[1769885286445,0.21171,2365.1,2363.0,3.383]
[1769885286646,0.21162,2366.1,2363.1,83.1389979]
[1769885286854,0.21179,2364.3,2363.0,2.92591]
[1769885287049,0.21179,2364.3,2363.0,85.1884679]
[1769885287249,0.21162,2366.1,2363.0,85.1884679]
[1769885287449,0.21168,2365.4,2363.1,4.12180572]
[1769885287648,0.42292,2367.9,2363.0,85.19242162]
[1769885287649,0.21141,2368.5,2365.2,4.12180572]
[1769885287854,0.21156,2366.8,2364.4,3.383]
[1769885288053,0.2116,2366.3,2364.5,3.383]
[1769885288253,0.2115,2367.4,2363.3,82.7151079]
[1769885288254,0.40135344,2366.7,2363.3,82.7151079]
[1769885288458,0.21172,2365.1,2363.3,82.7151079]
[1769885288652,0.21172,2365.1,2363.3,82.72044693]
[1769885288653,0.21488741,2365.1,2363.3,82.72044693]
[1769885288951,0.21488741,2365.1,2362.9,23.26619153]
[1769885288952,0.00316741,2365.1,2362.9,23.26619153]
[1769885289156,0.00316741,2365.1,2362.9,3.383]
[1769885289347,0.00316741,2365.1,2363.3,19.88319153]
[1769885289552,0.00316741,2365.1,2363.0,82.2834879]
[1769885289748,0.00316741,2365.1,2363.1,3.98611148]
[1769885289952,0.21159,2366.5,2363.3,3.98611148]
[1769885290163,0.2116,2366.4,2363.6,3.98611148]
[1769885290453,0.2115,2367.5,2363.9,3.98611148]
[1769885290651,0.2115,2367.5,2364.4,4.19788148]
[1769885290848,0.2115,2367.5,2365.6,3.98611148]
[1769885291055,0.21154,2367.0,2365.6,6.28e-06]
[1769885291263,0.21152,2367.2,2364.3,3.383]
[1769885291464,0.2116,2366.3,2364.4,84.76999834]
[1769885291658,0.21152,2367.2,2364.3,3.383]
[1769885291659,0.21156,2366.8,2364.3,3.25320764]
[1769885291954,0.22965529,2366.8,2364.3,83.08983264]
[1769885292158,0.23427145,2367.5,2364.4,4.00697808]
[1769885292355,0.00461616,2367.5,2365.0,4.00697808]
[1769885292561,0.00461616,2367.5,2365.9,4.00697808]
[1769885292764,0.21143,2368.2,2366.2,4.00697808]
[1769885293064,0.21147,2367.8,2366.2,4.00697808]
[1769885293257,0.21147,2367.8,2366.4,4.00697808]
[1769885293457,0.21147,2367.8,2366.5,19.88319153]
[1769885293658,0.21688566,2367.8,2366.7,19.88319153]
[1769885293863,0.2114,2368.6,2366.6,4.01921755]
[1769885294056,0.21143,2368.3,2366.6,4.01921755]
[1769885294257,0.21137,2368.9,2366.6,80.31743026]
[1769885294760,0.21154,2367.0,2365.1,4.02137207]
[1769885294956,0.21155,2366.9,2365.2,79.86704026]
[1769885295161,0.21155,2366.9,2364.9,79.86704026]
[1769885295461,0.21141,2368.5,2364.8,3.382]
[1769885295462,0.21162,2366.2,2364.8,82.81818026]
[1769885295661,0.21152,2367.2,2364.9,4.00126411]
[1769885295957,0.24108322,2367.1,2364.8,81.88798606]
[1769885296163,0.21162,2366.1,2364.8,81.88798606]
[1769885296662,0.00461213,2366.1,2364.9,4.00126411]
[1769885296871,0.21132,2369.5,2365.7,4.00126411]
[1769885297056,0.21125,2370.2,2366.5,4.00126411]
[1769885297362,0.21129,2369.9,2366.7,4.00126411]
[1769885297560,0.10958843,2370.9,2366.7,4.00126411]
[1769885297858,0.21134,2369.3,2366.9,4.06701151]
[1769885298059,0.21135,2369.1,2366.9,4.06701151]
[1769885298264,0.21116,2371.3,2367.8,4.06701151]
[1769885298561,44.21890059,2372.5,2369.0,4.06701151]
[1769885298562,0.21114,2371.5,2369.0,4.06701151]
[1769885298752,0.21114,2371.5,2369.1,3.381]
[1769885298956,0.21113,2371.7,2369.3,4.06701151]
[1769885299156,0.21104,2372.6,2369.8,4.06701151]
[1769885299354,0.21104,2372.6,2371.1,4.06701151]
[1769885299563,0.21104,2372.6,2371.2,3.381]
[1769885299862,0.21095,2373.6,2372.1,4.02576812]
[1769885300056,0.21095,2373.6,2372.3,3.59617812]
[1769885300264,0.21094,2373.8,2371.3,98.85709966]
[1769885300455,0.21101,2373.0,2371.2,2.92001]
[1769885300654,0.21109,2372.1,2371.1,0.00392642]
[1769885300858,0.21585255,2372.1,2371.1,0.00392642]
[1769885301055,0.21115,2371.5,2371.1,0.00392642]
[1769885301259,0.2111,2372.0,2371.1,0.00392642]
[1769885301464,0.00476255,2372.1,2371.1,79.44010668]
[1769885301664,0.21101,2373.0,2371.1,79.44010668]
[1769885301960,0.2111,2372.0,2369.6,3.379]
[1769885302162,0.21101,2373.0,2369.8,4.12180572]
[1769885302361,0.21101,2373.0,2370.3,4.12180572]
[1769885302559,0.2111,2372.0,2369.6,3.379]
[1769885302757,0.2147254,2372.0,2369.7,78.89832668]
[1769885302961,0.21114,2371.5,2369.6,0.00542767]
[1769885303160,0.21129,2369.9,2366.7,4.12180572]
[1769885303360,0.21129,2369.9,2366.9,4.12180572]
[1769885303561,0.21129,2369.9,2367.2,4.12180572]
[1769885303761,0.21129,2369.9,2368.1,4.12180572]
[1769885303966,0.21126,2370.1,2368.3,4.12180572]
[1769885304166,0.21590902,2370.1,2368.3,0.00312947]
[1769885304372,0.00463902,2370.1,2368.5,4.12180572]
[1769885304563,1e-08,2370.1,2368.5,4.12180572]
[1769885304875,1e-08,2370.1,2368.8,19.4209194]
[1769885305165,1e-08,2370.1,2368.5,78.45959668]
[1769885305473,0.21132,2369.5,2366.5,3.378]
[1769885305768,0.21142,2368.3,2365.3,3.378]
[1769885305970,0.21151,2367.4,2365.3,3.378]
[1769885306162,2.69389764,2368.1,2365.4,78.45959668]
[1769885306367,0.21153,2367.1,2365.4,78.45959668]
[1769885306560,0.21161,2366.2,2365.4,0.00315496]
[1769885306766,0.21159,2366.5,2364.0,4.12180572]
[1769885306963,0.21157,2366.7,2364.0,78.45959668]
[1769885307160,0.11165,2365.8,2364.0,78.45959668]
[1769885307369,0.11165,2365.8,2364.0,82.5814024]
[1769885307560,0.11165,2365.8,2364.3,23.54272512]
[1769885307761,0.00313512,2367.1,2364.9,19.4209194]
[1769885307964,0.00313512,2367.1,2365.2,4.12180572]
[1769885308367,0.00313512,2367.1,2365.3,78.45959668]
[1769885308568,0.21156,2366.8,2365.4,4.12180572]
[1769885308967,0.21157,2366.7,2365.3,3.379]
[1769885309172,0.21158,2366.6,2365.3,3.379]
[1769885309366,0.21158,2366.6,2365.4,78.03215668]
[1769885309672,0.00313512,2367.1,2365.5,4.12180572]
[1769885309967,0.21133,2369.4,2366.8,4.12180572]
[1769885310161,0.21117,2371.2,2365.2,0.21169]
[1769885310162,0.21137,2369.0,2367.0,4.12180572]
[1769885310366,0.21139,2368.7,2364.9,4.12180572]
[1769885310568,0.21144,2368.1,2365.6,4.12180572]
[1769885310769,0.2115,2367.5,2365.6,0.00534609]
[1769885310970,0.21153,2367.2,2365.7,77.50134668]
[1769885311364,0.00506575,2368.1,2365.8,4.12180572]
[1769885311666,0.00506575,2368.1,2366.0,4.12180572]
[1769885311667,0.21146,2367.9,2366.0,4.12180572]
[1769885311866,0.21146,2367.9,2366.2,4.12180572]
[1769885312173,0.21131,2369.6,2367.7,4.12180572]
[1769885312373,0.21131,2369.6,2367.9,4.12180572]
[1769885312665,0.21131,2369.6,2368.1,4.12180572]
[1769885312861,0.21131,2369.6,2368.2,4.12180572]
[1769885313066,0.21126,2370.1,2367.8,77.49628093]
[1769885313267,0.21136,2369.0,2367.8,0.00304239]
[1769885313469,0.21132,2369.5,2366.5,3.379]
[1769885313664,0.21142,2368.4,2366.6,76.64764332]
[1769885313870,0.21142,2368.4,2366.0,2.69389764]
[1769885314175,0.21141,2368.5,2365.5,76.64764332]
[1769885314471,0.2115,2367.4,2365.5,75.71519394]
[1769885314664,0.21158,2366.6,2365.5,75.71519394]
[1769885314869,0.21475036,2366.6,2364.2,3.379]
[1769885315066,0.21475036,2366.6,2364.4,3.7640915]
[1769885315267,0.21475036,2366.6,2364.9,3.7640915]
[1769885315771,0.21475036,2366.6,2365.3,3.7640915]
[1769885315968,0.00317036,2366.6,2365.5,3.7640915]
[1769885316165,0.00317036,2366.6,2365.6,74.84935493]
[1769885316671,0.21143,2368.2,2365.6,74.84935493]
[1769885316874,0.2115,2367.5,2365.7,4.12180572]
[1769885317168,0.21142,2368.4,2366.0,4.11566085]
[1769885317467,0.21142,2368.4,2366.6,4.11566085]
[1769885317671,0.00330158,2368.4,2367.0,4.11566085]
[1769885317873,0.00330158,2368.4,2367.0,4.12008042]
[1769885318068,0.00330158,2368.4,2367.1,74.84935493]
[1769885318371,0.21472158,2368.4,2367.1,74.84935493]
[1769885318573,0.21472158,2368.4,2367.6,16.81473727]
[1769885318771,0.21132,2369.5,2367.2,4.11566085]
[1769885318976,0.21134,2369.3,2367.4,4.11566085]
[1769885319166,0.44409326,2369.6,2367.1,74.84935493]
[1769885319367,0.45607323,2369.3,2367.0,0.00441957]
[1769885319574,0.21156,2366.8,2364.0,2.69389764]
[1769885320074,0.21156,2366.8,2364.1,73.81005493]
[1769885320276,0.21156,2366.8,2365.2,16.81473727]
[1769885320479,3.59032,2369.4,2366.1,16.81473727]
[1769885320771,0.21141,2368.5,2365.8,16.81473727]
[1769885320976,0.45495524,2369.3,2366.2,16.81473727]
[1769885321271,3.59032,2369.4,2365.6,3.88818323]
[1769885321272,0.21146,2367.9,2365.6,3.88818323]
[1769885321471,0.00412698,2367.9,2366.1,3.88818323]
[1769885321667,0.76194043,2367.9,2365.3,73.80630425]
[1769885321871,0.21159,2366.5,2365.3,73.80630425]
[1769885322072,0.75781345,2366.9,2363.8,3.38]
[1769885322473,0.75781345,2366.9,2363.9,73.80630425]
[1769885322673,0.21163,2366.1,2363.9,73.80630425]
[1769885322867,0.2116,2366.3,2363.9,73.80630425]
[1769885323073,0.00474384,2366.3,2363.9,73.81010885]
[1769885323574,0.21171,2365.1,2363.9,73.81010885]
[1769885323976,0.21176,2364.6,2363.0,3.84085354]
[1769885324176,0.21181,2364.0,2362.4,4.59459553]
[1769885324372,0.21181,2364.0,2362.5,72.95308425]
[1769885324572,3.0395385,2364.4,2362.4,4.06244553]
[1769885324773,0.21192,2362.8,2360.8,4.11566085]
[1769885324974,0.21196,2362.3,2360.8,6e-08]
[1769885325170,0.21197,2362.2,2360.0,3.38]
[1769885325372,3.0395385,2362.3,2360.2,193.18117596]
[1769885325675,3.0395385,2360.3,2356.4,4.11566085]
[1769885325875,0.21209,2360.9,2357.3,4.11566085]
[1769885326076,0.42242836,2358.1,2357.3,0.00380903]
[1769885326278,3.46196686,2358.8,2354.5,3.382]
[1769885326472,3.59421,2359.6,2354.0,3.0395385]
[1769885326473,3.0395385,2360.0,2357.3,22.29642215]
[1769885326674,0.21221,2359.5,2354.7,22.29642215]
[1769885326879,3.0395385,2360.0,2354.9,3.382]
[1769885327076,0.21229,2358.7,2354.9,3.382]
[1769885327287,0.21233,2358.2,2355.0,72.01013589]
[1769885327578,3.2519385,2357.5,2355.0,72.01013589]
[1769885327776,0.21237,2357.8,2355.0,72.01013589]
[1769885327982,0.21238,2357.7,2355.0,72.01013589]
[1769885328170,3.0395385,2358.5,2355.1,4.11566085]
[1769885328371,0.21231,2358.4,2355.8,4.11566085]
[1769885328570,3.0395385,2358.8,2355.8,4.11566085]
[1769885328776,0.21216,2360.1,2356.7,4.11566085]
[1769885328980,3.0395385,2360.2,2357.0,4.11566085]
[1769885329183,3.0395385,2361.1,2358.2,4.11566085]
[1769885329376,3.0395385,2360.3,2357.5,4.11566085]
[1769885329577,0.21214,2360.4,2357.5,4.11566085]
[1769885329880,0.21214,2360.4,2357.7,4.11566085]
[1769885330077,0.21208,2361.0,2357.9,4.11566085]
[1769885330380,0.21209,2360.9,2358.1,4.11566085]
[1769885330580,0.00479979,2360.9,2358.1,4.11566085]
[1769885330775,3.386,2363.5,2359.6,4.11566085]
[1769885330973,0.21178,2364.3,2361.1,4.11566085]
[1769885331179,0.42358,2364.2,2361.3,4.11566085]
[1769885331380,0.21188,2363.3,2359.3,4.11566085]
[1769885331576,0.34578866,2361.7,2358.8,72.01013589]
[1769885331781,0.35053004,2361.7,2358.8,72.01333464]
[1769885331977,0.56255004,2361.7,2358.8,72.01333464]
[1769885332279,0.34578866,2361.6,2358.8,72.01333464]
[1769885332483,0.34578866,2361.4,2358.9,22.29642215]
[1769885332677,0.00474138,2361.7,2359.2,22.29642215]
[1769885332877,0.00474138,2361.7,2359.5,22.29642215]
[1769885333180,0.21676138,2361.7,2358.9,72.01013589]
[1769885333381,0.00474138,2361.7,2358.9,72.01013589]
[1769885333584,0.21213,2360.5,2358.8,0.00319875]
[1769885333779,0.36600243,2361.4,2358.8,72.01333464]
[1769885334079,0.36600243,2361.4,2359.1,3.93265964]
[1769885334279,0.00474138,2361.7,2359.3,3.93265964]
[1769885334478,0.36600243,2364.2,2360.5,3.93265964]
[1769885334778,0.21177,2364.5,2361.0,3.93265964]
[1769885335081,0.36600243,2364.3,2361.0,3.93265964]
[1769885335283,0.21182,2363.9,2361.2,3.93265964]
[1769885335477,0.35179989,2363.2,2360.9,72.01013589]
[1769885335678,0.21192,2362.8,2360.9,0.00530669]
[1769885335880,0.35179989,2362.7,2360.9,0.00530669]
[1769885336080,0.35179989,2362.7,2359.9,3.387]
[1769885336081,0.21195,2362.5,2360.0,3.93976091]
[1769885336279,0.00406924,2363.2,2360.1,3.93976091]
[1769885336484,0.00406924,2363.2,2360.8,3.93976091]
[1769885336683,0.00406924,2363.2,2361.0,22.29642215]
[1769885336981,0.00406924,2363.2,2361.4,3.93976091]
[1769885337184,0.00406924,2363.2,2361.5,3.387]
[1769885337478,0.00406924,2363.2,2361.0,0.00371842]
[1769885337678,0.21594924,2363.2,2361.1,71.54728589]
[1769885337883,0.00406924,2363.2,2361.5,3.95349918]
[1769885338081,0.00406924,2363.2,2361.7,25.79945133]
[1769885338280,0.32432334,2365.0,2362.3,21.84595215]
[1769885338582,0.21179,2364.3,2362.1,21.84595215]
[1769885338779,3.0395385,2366.0,2363.3,3.95349918]
[1769885338980,0.21164,2365.9,2363.5,3.95349918]
[1769885339175,0.2117,2365.3,2363.5,7.34149918]
[1769885339380,0.0036049,2365.3,2363.6,71.54728589]
[1769885339582,0.0036049,2365.3,2363.6,75.50095783]